[Event "Titled Tuesday Blitz November 15 Early 2022"]
[White "Yaran, Siar"]
[Black "Grandelius, Nils"]
[WhiteFideId "6323006"]
[BlackFideId "1710400"]
[WhiteElo "2191"]
[BlackElo "2617"]
[Result "0-1"]
[Round "02"]
[TimeControl "180+1"]
[Date "2022.11.16"]
[WhiteClock "0:00:13"]
[BlackClock "0:00:20"]

1. Nf3 {[%clk 0:03:00]}  Nf6 {[%clk 0:02:56]} 2. c4 {[%clk 0:03:01]}  a6 {[%clk 0:02:51]} 3. Nc3 {[%clk 0:02:54]}  c5 {[%clk 0:02:45]} 4. d4 {[%clk 0:02:51]}  cxd4 {[%clk 0:02:46]} 5. Nxd4 {[%clk 0:02:51]}  e6 {[%clk 0:02:44]} 6. a3 {[%clk 0:02:50]}  b6 {[%clk 0:02:38]} 7. e4 {[%clk 0:02:49]}  Bb7 {[%clk 0:02:33]} 8. e5 {[%clk 0:02:36]}  Ne4 {[%clk 0:02:25]} 9. Nxe4 {[%clk 0:02:36]}  Bxe4 {[%clk 0:02:26]} 10. Bd3 {[%clk 0:02:36]}  Bxg2 {[%clk 0:02:17]} 11. Rg1 {[%clk 0:02:36]}  Bb7 {[%clk 0:02:18]} 12. Bf4 {[%clk 0:02:26]}  Nc6 {[%clk 0:02:13]} 13. Nxc6 {[%clk 0:02:06]}  Bxc6 {[%clk 0:02:11]} 14. Qc2 {[%clk 0:01:56]}  Qh4 {[%clk 0:01:34]} 15. Bg5 {[%clk 0:01:34]}  Qxh2 {[%clk 0:01:31]} 16. O-O-O {[%clk 0:01:35]}  Qxe5 {[%clk 0:01:27]} 17. f4 {[%clk 0:01:26]}  Qa5 {[%clk 0:01:08]} 18. f5 {[%clk 0:01:22]}  f6 {[%clk 0:01:00]} 19. Bd2 {[%clk 0:00:47]}  Qa4 {[%clk 0:01:00]} 20. Qc3 {[%clk 0:00:35]}  Qa5 {[%clk 0:00:37]} 21. b4 {[%clk 0:00:33]}  Qe5 {[%clk 0:00:35]} 22. Qxe5 {[%clk 0:00:31]}  fxe5 {[%clk 0:00:36]} 23. fxe6 {[%clk 0:00:31]}  dxe6 {[%clk 0:00:33]} 24. Bc3 {[%clk 0:00:21]}  a5 {[%clk 0:00:31]} 25. Kb2 {[%clk 0:00:17]}  e4 {[%clk 0:00:30]} 26. Bc2 {[%clk 0:00:16]}  axb4 {[%clk 0:00:30]} 27. axb4 {[%clk 0:00:17]}  Ra7 {[%clk 0:00:25]} 28. b5 {[%clk 0:00:17]}  Bb7 {[%clk 0:00:24]} 29. Ra1 {[%clk 0:00:16]}  Rxa1 {[%clk 0:00:23]} 30. Rxa1 {[%clk 0:00:17]}  Kd7 {[%clk 0:00:23]} 31. Rd1+ {[%clk 0:00:14]}  Kc8 {[%clk 0:00:23]} 32. Be5 {[%clk 0:00:14]}  h5 {[%clk 0:00:20]} 33. Bb3 {[%clk 0:00:13]}  Bc5 {[%clk 0:00:20]} 0-1


[Site "https://www.chess.com"]

[Event "Titled Tuesday Blitz November 15 Early 2022"]
[White "Yu, Yangyi"]
[Black "Injac, Teodora"]
[WhiteFideId "8603820"]
[BlackFideId "932400"]
[WhiteElo "2808"]
[BlackElo "2286"]
[Result "1/2-1/2"]
[Round "02"]
[TimeControl "180+1"]
[Date "2022.11.15"]
[WhiteClock "0:00:46"]
[BlackClock "0:00:18"]

1. d4 {[%clk 0:03:00]}  Nf6 {[%clk 0:02:59]} 2. c4 {[%clk 0:03:00]}  g6 {[%clk 0:03:00]} 3. Nc3 {[%clk 0:03:00]}  Bg7 {[%clk 0:03:01]} 4. e4 {[%clk 0:03:00]}  d6 {[%clk 0:03:01]} 5. Nf3 {[%clk 0:03:00]}  O-O {[%clk 0:03:01]} 6. Be2 {[%clk 0:03:00]}  Na6 {[%clk 0:03:00]} 7. O-O {[%clk 0:02:58]}  e5 {[%clk 0:03:01]} 8. Be3 {[%clk 0:02:56]}  c6 {[%clk 0:02:57]} 9. d5 {[%clk 0:02:42]}  c5 {[%clk 0:02:56]} 10. Ne1 {[%clk 0:02:39]}  Ne8 {[%clk 0:02:52]} 11. Nd3 {[%clk 0:02:38]}  f5 {[%clk 0:02:52]} 12. f4 {[%clk 0:02:38]}  exf4 {[%clk 0:02:43]} 13. Nxf4 {[%clk 0:02:33]}  Nac7 {[%clk 0:02:24]} 14. Bd3 {[%clk 0:02:19]}  Qe7 {[%clk 0:02:12]} 15. Qc2 {[%clk 0:02:16]}  g5 {[%clk 0:02:03]} 16. Nh5 {[%clk 0:02:10]}  f4 {[%clk 0:02:03]} 17. Nxg7 {[%clk 0:02:09]}  Nxg7 {[%clk 0:01:57]} 18. Bd2 {[%clk 0:02:06]}  Nh5 {[%clk 0:01:37]} 19. Rae1 {[%clk 0:02:03]}  g4 {[%clk 0:01:26]} 20. Qc1 {[%clk 0:01:52]}  Qe5 {[%clk 0:01:12]} 21. Nb5 {[%clk 0:01:46]}  Nxb5 {[%clk 0:01:09]} 22. cxb5 {[%clk 0:01:43]}  Qd4+ {[%clk 0:01:07]} 23. Kh1 {[%clk 0:01:39]}  Qxd3 {[%clk 0:01:07]} 24. Bxf4 {[%clk 0:01:35]}  Nxf4 {[%clk 0:01:04]} 25. Rxf4 {[%clk 0:01:35]}  Bd7 {[%clk 0:01:01]} 26. Ref1 {[%clk 0:01:34]}  Qd4 {[%clk 0:00:49]} 27. Rxf8+ {[%clk 0:01:23]}  Rxf8 {[%clk 0:00:50]} 28. Qg5+ {[%clk 0:01:23]}  Qg7 {[%clk 0:00:44]} 29. Rxf8+ {[%clk 0:01:23]}  Kxf8 {[%clk 0:00:45]} 30. Qd8+ {[%clk 0:01:23]}  Be8 {[%clk 0:00:45]} 31. Qxd6+ {[%clk 0:01:23]}  Qe7 {[%clk 0:00:43]} 32. Qf4+ {[%clk 0:01:21]}  Qf7 {[%clk 0:00:43]} 33. Qd6+ {[%clk 0:01:21]}  Kg8 {[%clk 0:00:40]} 34. Kg1 {[%clk 0:01:09]}  Bxb5 {[%clk 0:00:35]} 35. Qd8+ {[%clk 0:01:09]}  Kg7 {[%clk 0:00:30]} 36. Qg5+ {[%clk 0:01:08]}  Qg6 {[%clk 0:00:29]} 37. Qe7+ {[%clk 0:01:07]}  Qf7 {[%clk 0:00:22]} 38. Qg5+ {[%clk 0:01:07]}  Qg6 {[%clk 0:00:20]} 39. Qe7+ {[%clk 0:00:50]}  Qf7 {[%clk 0:00:18]} 40. Qg5+ {[%clk 0:00:46]} 1/2-1/2


[Site "https://www.chess.com"]

[Event "Titled Tuesday Blitz November 15 Early 2022"]
[White "Zacurdajev, Dmitry"]
[Black "Moksh Amit Doshi"]
[WhiteFideId "4196309"]
[BlackFideId "25064967"]
[WhiteElo "2179"]
[BlackElo "2330"]
[Result "1-0"]
[Round "02"]
[TimeControl "180+1"]
[Date "2022.11.16"]
[WhiteClock "0:00:07"]
[BlackClock "0:00:39"]

1. d4 {[%clk 0:03:00]}  Nf6 {[%clk 0:02:56]} 2. c4 {[%clk 0:03:00]}  e6 {[%clk 0:02:55]} 3. Nc3 {[%clk 0:03:00]}  Bb4 {[%clk 0:02:55]} 4. Qc2 {[%clk 0:03:01]}  O-O {[%clk 0:02:54]} 5. a3 {[%clk 0:02:58]}  Bxc3+ {[%clk 0:02:55]} 6. Qxc3 {[%clk 0:02:59]}  d5 {[%clk 0:02:55]} 7. Bg5 {[%clk 0:02:38]}  dxc4 {[%clk 0:02:52]} 8. Qxc4 {[%clk 0:02:21]}  b6 {[%clk 0:02:50]} 9. Nf3 {[%clk 0:02:09]}  Ba6 {[%clk 0:02:46]} 10. Qc2 {[%clk 0:02:03]}  h6 {[%clk 0:02:46]} 11. Bh4 {[%clk 0:01:46]}  c5 {[%clk 0:02:36]} 12. dxc5 {[%clk 0:01:12]}  Nbd7 {[%clk 0:02:34]} 13. Rd1 {[%clk 0:00:54]}  Qc7 {[%clk 0:02:29]} 14. c6 {[%clk 0:00:42]}  Rac8 {[%clk 0:02:23]} 15. Nd4 {[%clk 0:00:36]}  Ne5 {[%clk 0:01:42]} 16. Bxf6 {[%clk 0:00:27]}  gxf6 {[%clk 0:01:42]} 17. Qa4 {[%clk 0:00:16]}  Bc4 {[%clk 0:01:38]} 18. e3 {[%clk 0:00:17]}  Bxf1 {[%clk 0:01:34]} 19. Kxf1 {[%clk 0:00:18]}  Nxc6 {[%clk 0:01:35]} 20. Rc1 {[%clk 0:00:18]}  b5 {[%clk 0:01:30]} 21. Nxb5 {[%clk 0:00:11]}  Qb6 {[%clk 0:01:29]} 22. b4 {[%clk 0:00:06]}  Nxb4 {[%clk 0:01:11]} 23. Rxc8 {[%clk 0:00:05]}  Rxc8 {[%clk 0:01:12]} 24. Qxb4 {[%clk 0:00:04]}  Rc1+ {[%clk 0:01:11]} 25. Ke2 {[%clk 0:00:05]}  Rxh1 {[%clk 0:01:12]} 26. Qg4+ {[%clk 0:00:04]}  Kf8 {[%clk 0:01:12]} 27. a4 {[%clk 0:00:04]}  a6 {[%clk 0:01:08]} 28. Nd4 {[%clk 0:00:01]}  Rxh2 {[%clk 0:01:05]} 29. Qf4 {[%clk 0:00:01]}  Rxg2 {[%clk 0:01:02]} 30. Qxf6 {[%clk 0:00:01]}  Qb2+ {[%clk 0:00:57]} 31. Kf1 {[%clk 0:00:01]}  Rg6 {[%clk 0:00:54]} 32. Nxe6+ {[%clk 0:00:02]}  Kg8 {[%clk 0:00:50]} 33. Qxb2 {[%clk 0:00:03]}  Rxe6 {[%clk 0:00:51]} 34. Qb8+ {[%clk 0:00:03]}  Kg7 {[%clk 0:00:51]} 35. Qg3+ {[%clk 0:00:04]}  Kh7 {[%clk 0:00:51]} 36. Qf4 {[%clk 0:00:04]}  Kg7 {[%clk 0:00:51]} 37. Qd4+ {[%clk 0:00:04]}  Kh7 {[%clk 0:00:51]} 38. Qd3+ {[%clk 0:00:04]}  Kg7 {[%clk 0:00:51]} 39. Qd4+ {[%clk 0:00:05]}  Kh7 {[%clk 0:00:52]} 40. Ke2 {[%clk 0:00:06]}  Kg6 {[%clk 0:00:51]} 41. f4 {[%clk 0:00:07]}  Kh7 {[%clk 0:00:51]} 42. Kf3 {[%clk 0:00:07]}  Rg6 {[%clk 0:00:47]} 43. f5 {[%clk 0:00:07]}  Rc6 {[%clk 0:00:47]} 44. Qe4 {[%clk 0:00:07]}  Rf6 {[%clk 0:00:47]} 45. Kf4 {[%clk 0:00:07]}  Rb6 {[%clk 0:00:41]} 46. f6+ {[%clk 0:00:07]}  Kh8 {[%clk 0:00:38]} 47. Qe8+ {[%clk 0:00:06]}  Kh7 {[%clk 0:00:39]} 48. Qxf7+ {[%clk 0:00:07]} 1-0


[Site "https://www.chess.com"]

[Event "Titled Tuesday Blitz November 15 Early 2022"]
[White "Zemlyanskii, Ivan"]
[Black "Salman, Pavel"]
[WhiteFideId "24249971"]
[BlackFideId "24153753"]
[WhiteElo "2107"]
[BlackElo "2187"]
[Result "1-0"]
[Round "02"]
[TimeControl "180+1"]
[Date "2022.11.16"]
[WhiteClock "0:00:08"]
[BlackClock "0:00:11"]

1. d4 {[%clk 0:03:00]}  Nf6 {[%clk 0:02:52]} 2. c4 {[%clk 0:03:01]}  c5 {[%clk 0:02:52]} 3. d5 {[%clk 0:03:01]}  b5 {[%clk 0:02:52]} 4. Nf3 {[%clk 0:03:01]}  bxc4 {[%clk 0:02:52]} 5. Nc3 {[%clk 0:03:01]}  e6 {[%clk 0:02:52]} 6. e4 {[%clk 0:03:00]}  exd5 {[%clk 0:02:52]} 7. e5 {[%clk 0:02:28]}  Ng8 {[%clk 0:02:40]} 8. Qxd5 {[%clk 0:02:26]}  Nc6 {[%clk 0:02:30]} 9. Bxc4 {[%clk 0:02:26]}  Qe7 {[%clk 0:02:18]} 10. Nb5 {[%clk 0:02:26]}  Kd8 {[%clk 0:01:44]} 11. Nd6 {[%clk 0:02:16]}  Kc7 {[%clk 0:01:29]} 12. Nxf7 {[%clk 0:02:14]}  Bb7 {[%clk 0:01:28]} 13. Qd1 {[%clk 0:01:43]}  Nh6 {[%clk 0:01:13]} 14. Nxh8 {[%clk 0:01:12]}  Nxe5 {[%clk 0:01:13]} 15. Nxe5 {[%clk 0:01:09]}  Qxe5+ {[%clk 0:01:14]} 16. Kf1 {[%clk 0:01:10]}  Bd6 {[%clk 0:01:11]} 17. Bxh6 {[%clk 0:01:05]}  Rxh8 {[%clk 0:00:58]} 18. Be3 {[%clk 0:00:58]}  Rf8 {[%clk 0:00:48]} 19. Qe2 {[%clk 0:00:33]}  h5 {[%clk 0:00:27]} 20. f3 {[%clk 0:00:31]}  h4 {[%clk 0:00:27]} 21. Bf2 {[%clk 0:00:31]}  Qg5 {[%clk 0:00:23]} 22. h3 {[%clk 0:00:29]}  Rf4 {[%clk 0:00:19]} 23. Rd1 {[%clk 0:00:28]}  Qf6 {[%clk 0:00:15]} 24. b3 {[%clk 0:00:27]}  Rxf3 {[%clk 0:00:15]} 25. Rxd6 {[%clk 0:00:11]}  Kxd6 {[%clk 0:00:11]} 26. gxf3 {[%clk 0:00:10]}  Bxf3 {[%clk 0:00:12]} 27. Qd2+ {[%clk 0:00:11]}  Kc7 {[%clk 0:00:12]} 28. Rg1 {[%clk 0:00:10]}  d5 {[%clk 0:00:11]} 29. Bxd5 {[%clk 0:00:07]}  Qa1+ {[%clk 0:00:12]} 30. Be1 {[%clk 0:00:07]}  Qf6 {[%clk 0:00:09]} 31. Bxf3 {[%clk 0:00:03]}  Qxf3+ {[%clk 0:00:10]} 32. Bf2 {[%clk 0:00:04]}  Qxh3+ {[%clk 0:00:10]} 33. Ke1 {[%clk 0:00:05]}  Qe6+ {[%clk 0:00:08]} 34. Qe3 {[%clk 0:00:05]}  Qf6 {[%clk 0:00:09]} 35. Qxc5+ {[%clk 0:00:05]}  Kb7 {[%clk 0:00:10]} 36. Qxa7+ {[%clk 0:00:05]}  Kc8 {[%clk 0:00:09]} 37. Qc5+ {[%clk 0:00:05]}  Kb7 {[%clk 0:00:09]} 38. Qb6+ {[%clk 0:00:05]}  Qxb6 {[%clk 0:00:09]} 39. Bxb6 {[%clk 0:00:06]}  Kxb6 {[%clk 0:00:10]} 40. Rxg7 {[%clk 0:00:07]}  h3 {[%clk 0:00:10]} 41. Rh7 {[%clk 0:00:07]}  Kb5 {[%clk 0:00:11]} 42. Rxh3 {[%clk 0:00:07]}  Kb4 {[%clk 0:00:11]} 43. Kd2 {[%clk 0:00:08]} 1-0


[Site "https://www.chess.com"]

[Event "Titled Tuesday Blitz November 15 Early 2022"]
[White "Zhao, Jun"]
[Black "Guimaraes, Wagner Peixoto"]
[WhiteFideId "8602522"]
[BlackFideId "2100940"]
[WhiteElo "2547"]
[BlackElo "2231"]
[Result "1-0"]
[Round "02"]
[TimeControl "180+1"]
[Date "2022.11.16"]
[WhiteClock "0:00:45"]
[BlackClock "0:00:10"]

1. c4 {[%clk 0:02:56]}  e5 {[%clk 0:02:47]} 2. Nc3 {[%clk 0:02:55]}  Nf6 {[%clk 0:02:40]} 3. g3 {[%clk 0:02:55]}  Nc6 {[%clk 0:02:17]} 4. Bg2 {[%clk 0:02:55]}  Bb4 {[%clk 0:02:05]} 5. Nd5 {[%clk 0:02:55]}  d6 {[%clk 0:01:58]} 6. a3 {[%clk 0:02:48]}  Bc5 {[%clk 0:01:56]} 7. b4 {[%clk 0:02:49]}  Bd4 {[%clk 0:01:48]} 8. Rb1 {[%clk 0:02:48]}  a6 {[%clk 0:01:43]} 9. e3 {[%clk 0:02:47]}  Ba7 {[%clk 0:01:43]} 10. Ne2 {[%clk 0:02:47]}  Bf5 {[%clk 0:01:40]} 11. d3 {[%clk 0:02:45]}  e4 {[%clk 0:01:33]} 12. d4 {[%clk 0:02:38]}  Nxd5 {[%clk 0:01:30]} 13. cxd5 {[%clk 0:02:38]}  Ne7 {[%clk 0:01:31]} 14. Nc3 {[%clk 0:02:38]}  h5 {[%clk 0:01:27]} 15. Qc2 {[%clk 0:02:27]}  h4 {[%clk 0:01:15]} 16. Bxe4 {[%clk 0:02:26]}  Bh3 {[%clk 0:01:11]} 17. Ne2 {[%clk 0:02:14]}  Qd7 {[%clk 0:00:49]} 18. Nf4 {[%clk 0:02:09]}  Bg4 {[%clk 0:00:49]} 19. h3 {[%clk 0:02:07]}  g5 {[%clk 0:00:36]} 20. hxg4 {[%clk 0:02:01]}  gxf4 {[%clk 0:00:36]} 21. gxf4 {[%clk 0:01:57]}  O-O-O {[%clk 0:00:33]} 22. Bf5 {[%clk 0:01:54]}  Nxf5 {[%clk 0:00:32]} 23. Qxf5 {[%clk 0:01:55]}  Qxf5 {[%clk 0:00:29]} 24. gxf5 {[%clk 0:01:55]}  Rdg8 {[%clk 0:00:28]} 25. Ke2 {[%clk 0:01:51]}  Kd7 {[%clk 0:00:26]} 26. Kf3 {[%clk 0:01:49]}  Rh5 {[%clk 0:00:22]} 27. Bb2 {[%clk 0:01:30]}  Rxf5 {[%clk 0:00:19]} 28. Rxh4 {[%clk 0:01:10]}  Rxd5 {[%clk 0:00:19]} 29. Rh7 {[%clk 0:01:10]}  Ke7 {[%clk 0:00:17]} 30. Rc1 {[%clk 0:01:10]}  c6 {[%clk 0:00:16]} 31. a4 {[%clk 0:01:06]}  Rf5 {[%clk 0:00:11]} 32. e4 {[%clk 0:01:05]}  Rf6 {[%clk 0:00:11]} 33. d5 {[%clk 0:01:04]}  Rfg6 {[%clk 0:00:10]} 34. dxc6 {[%clk 0:01:02]}  bxc6 {[%clk 0:00:11]} 35. Rxc6 {[%clk 0:00:54]}  Bb8 {[%clk 0:00:11]} 36. Rb6 {[%clk 0:00:46]}  d5 {[%clk 0:00:10]} 37. Rb7+ {[%clk 0:00:45]}  Ke6 {[%clk 0:00:10]} 38. f5+ {[%clk 0:00:45]} 1-0


[Site "https://www.chess.com"]

[Event "Titled Tuesday Blitz November 15 Early 2022"]
[White "Zivkovic, Nemanja"]
[Black "Kollars, Dmitrij"]
[WhiteFideId "942154"]
[BlackFideId "12909572"]
[WhiteElo "2372"]
[BlackElo "2584"]
[Result "0-1"]
[Round "02"]
[TimeControl "180+1"]
[Date "2022.11.15"]
[WhiteClock "0:01:08"]
[BlackClock "0:02:08"]

1. e4 {[%clk 0:02:45]}  e6 {[%clk 0:02:59]} 2. d3 {[%clk 0:02:45]}  d5 {[%clk 0:03:00]} 3. Nd2 {[%clk 0:02:44]}  c5 {[%clk 0:02:59]} 4. Ngf3 {[%clk 0:02:44]}  Nc6 {[%clk 0:02:59]} 5. g3 {[%clk 0:02:43]}  Nf6 {[%clk 0:02:58]} 6. Bg2 {[%clk 0:02:43]}  Qc7 {[%clk 0:02:58]} 7. O-O {[%clk 0:02:42]}  Be7 {[%clk 0:02:58]} 8. Re1 {[%clk 0:02:36]}  b6 {[%clk 0:02:58]} 9. exd5 {[%clk 0:02:02]}  Nxd5 {[%clk 0:02:59]} 10. Ne4 {[%clk 0:01:53]}  Bb7 {[%clk 0:02:54]} 11. c3 {[%clk 0:01:41]}  O-O {[%clk 0:02:51]} 12. Qc2 {[%clk 0:01:40]}  Rad8 {[%clk 0:02:50]} 13. h4 {[%clk 0:01:40]}  h6 {[%clk 0:02:50]} 14. Bd2 {[%clk 0:01:40]}  f5 {[%clk 0:02:36]} 15. Bc1 {[%clk 0:01:14]}  fxe4 {[%clk 0:02:34]} 16. dxe4 {[%clk 0:01:15]}  Nf6 {[%clk 0:02:32]} 17. Bf4 {[%clk 0:01:14]}  e5 {[%clk 0:02:31]} 18. Be3 {[%clk 0:01:13]}  Ng4 {[%clk 0:02:29]} 19. Nd2 {[%clk 0:01:12]}  Nxe3 {[%clk 0:02:09]} 20. Rxe3 {[%clk 0:01:13]}  c4 {[%clk 0:02:09]} 21. Nxc4 {[%clk 0:01:07]}  Bc5 {[%clk 0:02:09]} 22. Rf3 {[%clk 0:01:07]}  Rxf3 {[%clk 0:02:09]} 23. Bxf3 {[%clk 0:01:08]}  Qf7 {[%clk 0:02:09]} 24. Nd2 {[%clk 0:01:07]}  Rxd2 {[%clk 0:02:08]} 25. Qxd2 {[%clk 0:01:08]}  Qxf3 {[%clk 0:02:08]} 0-1


[Site "https://www.chess.com"]

[Event "Titled Tuesday Blitz November 15 Early 2022"]
[White "Adel, Sara"]
[Black "Muminova, Nafisa"]
[WhiteFideId "10616764"]
[BlackFideId "14201526"]
[WhiteElo "1994"]
[BlackElo "2258"]
[Result "1/2-1/2"]
[Round "03"]
[TimeControl "180+1"]
[Date "2022.11.16"]
[WhiteClock "0:00:15"]
[BlackClock "0:00:15"]

1. e4 {[%clk 0:01:08]}  e6 {[%clk 0:02:57]} 2. d4 {[%clk 0:01:07]}  d5 {[%clk 0:02:56]} 3. Nd2 {[%clk 0:01:08]}  Nf6 {[%clk 0:02:55]} 4. e5 {[%clk 0:01:08]}  Nfd7 {[%clk 0:02:55]} 5. Bd3 {[%clk 0:01:07]}  c5 {[%clk 0:02:56]} 6. c3 {[%clk 0:01:07]}  Nc6 {[%clk 0:02:57]} 7. Ne2 {[%clk 0:01:07]}  cxd4 {[%clk 0:02:57]} 8. cxd4 {[%clk 0:01:07]}  f6 {[%clk 0:02:57]} 9. exf6 {[%clk 0:01:07]}  Nxf6 {[%clk 0:02:57]} 10. Nf3 {[%clk 0:01:07]}  Bd6 {[%clk 0:02:57]} 11. Bg5 {[%clk 0:01:08]}  O-O {[%clk 0:02:56]} 12. a3 {[%clk 0:01:07]}  Qc7 {[%clk 0:02:53]} 13. Rc1 {[%clk 0:01:06]}  Bd7 {[%clk 0:02:51]} 14. O-O {[%clk 0:01:04]}  Be8 {[%clk 0:02:43]} 15. b4 {[%clk 0:01:04]}  a6 {[%clk 0:02:42]} 16. Qc2 {[%clk 0:01:02]}  h6 {[%clk 0:02:31]} 17. Be3 {[%clk 0:00:59]}  Bh5 {[%clk 0:02:27]} 18. Ng3 {[%clk 0:00:55]}  Bg4 {[%clk 0:01:54]} 19. Nh4 {[%clk 0:00:49]}  g5 {[%clk 0:01:17]} 20. Ng6 {[%clk 0:00:47]}  Rfe8 {[%clk 0:01:15]} 21. h3 {[%clk 0:00:43]}  Bh5 {[%clk 0:01:11]} 22. Nxh5 {[%clk 0:00:40]}  Nxh5 {[%clk 0:01:11]} 23. Qe2 {[%clk 0:00:40]}  Nf6 {[%clk 0:01:02]} 24. h4 {[%clk 0:00:40]}  Bh2+ {[%clk 0:00:42]} 25. Kh1 {[%clk 0:00:39]}  Bf4 {[%clk 0:00:42]} 26. hxg5 {[%clk 0:00:38]}  hxg5 {[%clk 0:00:41]} 27. g3 {[%clk 0:00:34]}  Bxe3 {[%clk 0:00:40]} 28. Qxe3 {[%clk 0:00:33]}  Nh7 {[%clk 0:00:39]} 29. Ne5 {[%clk 0:00:30]}  Qg7 {[%clk 0:00:33]} 30. Nxc6 {[%clk 0:00:25]}  bxc6 {[%clk 0:00:33]} 31. Rxc6 {[%clk 0:00:25]}  Nf8 {[%clk 0:00:33]} 32. Kg2 {[%clk 0:00:23]}  Rac8 {[%clk 0:00:30]} 33. Qc1 {[%clk 0:00:20]}  Rxc6 {[%clk 0:00:27]} 34. Qxc6 {[%clk 0:00:16]}  Re7 {[%clk 0:00:27]} 35. Rh1 {[%clk 0:00:16]}  Qxd4 {[%clk 0:00:26]} 36. Qd6 {[%clk 0:00:14]}  Qf6 {[%clk 0:00:25]} 37. f4 {[%clk 0:00:13]}  Rf7 {[%clk 0:00:24]} 38. Qe5 {[%clk 0:00:13]}  Qxe5 {[%clk 0:00:24]} 39. fxe5 {[%clk 0:00:13]}  Kg7 {[%clk 0:00:24]} 40. Rh5 {[%clk 0:00:13]}  Rc7 {[%clk 0:00:21]} 41. Rxg5+ {[%clk 0:00:14]}  Kf7 {[%clk 0:00:22]} 42. Rh5 {[%clk 0:00:14]}  Rc3 {[%clk 0:00:22]} 43. Bb1 {[%clk 0:00:13]}  Rb3 {[%clk 0:00:20]} 44. Rh1 {[%clk 0:00:13]}  Rxa3 {[%clk 0:00:20]} 45. Rf1+ {[%clk 0:00:14]}  Ke7 {[%clk 0:00:19]} 46. Kh3 {[%clk 0:00:12]}  Rb3 {[%clk 0:00:19]} 47. Bc2 {[%clk 0:00:11]}  Rxb4 {[%clk 0:00:19]} 48. Ra1 {[%clk 0:00:12]}  Rb6 {[%clk 0:00:19]} 49. Bd3 {[%clk 0:00:13]}  Nd7 {[%clk 0:00:19]} 50. Rxa6 {[%clk 0:00:13]}  Rxa6 {[%clk 0:00:18]} 51. Bxa6 {[%clk 0:00:13]}  Nxe5 {[%clk 0:00:19]} 52. Be2 {[%clk 0:00:12]}  d4 {[%clk 0:00:18]} 53. g4 {[%clk 0:00:13]}  Kf6 {[%clk 0:00:17]} 54. Kg3 {[%clk 0:00:12]}  d3 {[%clk 0:00:17]} 55. Bd1 {[%clk 0:00:13]}  Kg5 {[%clk 0:00:17]} 56. Bb3 {[%clk 0:00:13]}  Kf6 {[%clk 0:00:16]} 57. Kf4 {[%clk 0:00:13]}  d2 {[%clk 0:00:14]} 58. g5+ {[%clk 0:00:13]}  Kg6 {[%clk 0:00:13]} 59. Kxe5 {[%clk 0:00:14]}  Kxg5 {[%clk 0:00:13]} 60. Kxe6 {[%clk 0:00:15]}  Kf4 {[%clk 0:00:14]} 61. Kd5 {[%clk 0:00:15]}  Ke3 {[%clk 0:00:14]} 62. Kc4 {[%clk 0:00:15]}  Ke2 {[%clk 0:00:15]} 63. Kc3 {[%clk 0:00:15]}  d1=Q {[%clk 0:00:15]} 64. Bxd1+ {[%clk 0:00:15]} 1/2-1/2


[Site "https://www.chess.com"]

[Event "Titled Tuesday Blitz November 15 Early 2022"]
[White "Ahn, Hongjin"]
[Black "Prokofiev, Valentyn"]
[WhiteFideId "13201492"]
[BlackFideId "14160161"]
[WhiteElo "2182"]
[BlackElo "2259"]
[Result "0-1"]
[Round "03"]
[TimeControl "180+1"]
[Date "2022.11.16"]
[WhiteClock "0:00:20"]
[BlackClock "0:01:09"]

1. c4 {[%clk 0:03:00]}  g6 {[%clk 0:02:59]} 2. d4 {[%clk 0:02:59]}  Bg7 {[%clk 0:02:59]} 3. e4 {[%clk 0:03:00]}  c5 {[%clk 0:02:59]} 4. Nf3 {[%clk 0:03:00]}  d6 {[%clk 0:02:57]} 5. Nc3 {[%clk 0:02:59]}  Nf6 {[%clk 0:02:56]} 6. h3 {[%clk 0:02:57]}  O-O {[%clk 0:02:56]} 7. Be3 {[%clk 0:02:56]}  cxd4 {[%clk 0:02:43]} 8. Nxd4 {[%clk 0:02:57]}  b6 {[%clk 0:02:43]} 9. g4 {[%clk 0:02:56]}  Bb7 {[%clk 0:02:43]} 10. Bg2 {[%clk 0:02:56]}  Nbd7 {[%clk 0:02:44]} 11. O-O {[%clk 0:02:54]}  Nc5 {[%clk 0:02:41]} 12. Qc2 {[%clk 0:02:53]}  Rc8 {[%clk 0:02:35]} 13. Rad1 {[%clk 0:02:53]}  Qe8 {[%clk 0:02:33]} 14. b4 {[%clk 0:02:49]}  Ne6 {[%clk 0:02:33]} 15. Nxe6 {[%clk 0:02:46]}  fxe6 {[%clk 0:02:34]} 16. e5 {[%clk 0:02:38]}  Bxg2 {[%clk 0:02:16]} 17. exf6 {[%clk 0:02:38]}  Bxf6 {[%clk 0:02:17]} 18. Kxg2 {[%clk 0:02:38]}  Rxc4 {[%clk 0:02:18]} 19. Rd3 {[%clk 0:02:28]}  Qc6+ {[%clk 0:02:17]} 20. Kg1 {[%clk 0:02:13]}  Rxc3 {[%clk 0:02:11]} 21. Rxc3 {[%clk 0:02:11]}  Qxc3 {[%clk 0:02:12]} 22. Qe4 {[%clk 0:02:10]}  Kf7 {[%clk 0:02:00]} 23. g5 {[%clk 0:02:04]}  Be5 {[%clk 0:01:54]} 24. f4 {[%clk 0:01:52]}  Bg7 {[%clk 0:01:54]} 25. Kg2 {[%clk 0:01:12]}  Rc8 {[%clk 0:01:48]} 26. Bf2 {[%clk 0:00:56]}  Qc6 {[%clk 0:01:36]} 27. Qxc6 {[%clk 0:00:48]}  Rxc6 {[%clk 0:01:37]} 28. a4 {[%clk 0:00:48]}  Rc4 {[%clk 0:01:35]} 29. Rb1 {[%clk 0:00:43]}  Rxf4 {[%clk 0:01:30]} 30. a5 {[%clk 0:00:43]}  Bd4 {[%clk 0:01:27]} 31. Bg3 {[%clk 0:00:38]}  Rf5 {[%clk 0:01:27]} 32. axb6 {[%clk 0:00:38]}  Bxb6 {[%clk 0:01:27]} 33. h4 {[%clk 0:00:39]}  e5 {[%clk 0:01:27]} 34. Re1 {[%clk 0:00:34]}  Ke6 {[%clk 0:01:27]} 35. Kh3 {[%clk 0:00:27]}  Bf2 {[%clk 0:01:21]} 36. Bxf2 {[%clk 0:00:25]}  Rxf2 {[%clk 0:01:22]} 37. Ra1 {[%clk 0:00:25]}  Rf3+ {[%clk 0:01:22]} 38. Kg2 {[%clk 0:00:24]}  Rf4 {[%clk 0:01:18]} 39. b5 {[%clk 0:00:19]}  Rb4 {[%clk 0:01:18]} 40. Rxa7 {[%clk 0:00:17]}  Rxb5 {[%clk 0:01:18]} 41. Kg3 {[%clk 0:00:18]}  Rb3+ {[%clk 0:01:18]} 42. Kg4 {[%clk 0:00:19]}  Rb4+ {[%clk 0:01:18]} 43. Kg3 {[%clk 0:00:19]}  d5 {[%clk 0:01:18]} 44. Ra8 {[%clk 0:00:20]}  Rb3+ {[%clk 0:01:15]} 45. Kg4 {[%clk 0:00:20]}  d4 {[%clk 0:01:16]} 46. Rh8 {[%clk 0:00:19]}  d3 {[%clk 0:01:09]} 47. Rd8 {[%clk 0:00:19]}  Rb4+ {[%clk 0:01:08]} 48. Kf3 {[%clk 0:00:20]}  Rd4 {[%clk 0:01:08]} 49. Rxd4 {[%clk 0:00:20]}  exd4 {[%clk 0:01:09]} 0-1


[Site "https://www.chess.com"]